[Event "*** Titled Tuesday Blitz"]
[Site "Chess.com"]
[Date "2021.03.16"]
[Round "9"]
[White "rachidhuilda"]
[Black "ariosp"]
[Result "1-0"]
[WhiteElo "2286"]
[BlackElo "2193"]
[TimeControl "180+1"]
[EndTime "11:44:25 PDT"]
[Termination "rachidhuilda won by resignation"]

1. d4 {[%clk 0:03:00.9]} 1... Nf6 {[%clk 0:02:54.2]} 2. Bg5 {[%clk 0:02:55.8]}
2... e6 {[%clk 0:02:48.4]} 3. e4 {[%clk 0:02:54.8]} 3... h6 {[%clk 0:02:47.6]}
4. Bxf6 {[%clk 0:02:54.1]} 4... Qxf6 {[%clk 0:02:46.4]} 5. c3 {[%clk 0:02:54.5]}
5... d5 {[%clk 0:02:46.2]} 6. Nd2 {[%clk 0:02:54.5]} 6... c5 {[%clk 0:02:43.5]}
7. Ngf3 {[%clk 0:02:53.7]} 7... Nc6 {[%clk 0:02:43.2]} 8. Bb5 {[%clk 0:02:53.3]}
8... Bd7 {[%clk 0:02:40.7]} 9. O-O {[%clk 0:02:53.4]} 9... Be7 {[%clk
0:02:27.7]} 10. exd5 {[%clk 0:02:51.6]} 10... exd5 {[%clk 0:02:27.2]} 11. Ne5
{[%clk 0:02:04.4]} 11... Nxe5 {[%clk 0:02:19.6]} 12. dxe5 {[%clk 0:02:04.6]}
12... Qe6 {[%clk 0:02:11.1]} 13. Qa4 {[%clk 0:01:44.4]} 13... a6 {[%clk
0:02:05.9]} 14. Bxd7+ {[%clk 0:01:42.1]} 14... Qxd7 {[%clk 0:02:06]} 15. Qxd7+
{[%clk 0:01:42.5]} 15... Kxd7 {[%clk 0:02:06]} 16. f4 {[%clk 0:01:43]} 16... Kc6
{[%clk 0:02:03.2]} 17. Nf3 {[%clk 0:01:34.3]} 17... Rad8 {[%clk 0:02:00.4]} 18.
Rfd1 {[%clk 0:01:33.7]} 18... g6 {[%clk 0:01:58.5]} 19. Kf2 {[%clk 0:01:33.2]}
19... Rd7 {[%clk 0:01:57.4]} 20. Ke3 {[%clk 0:01:15.3]} 20... Rhd8 {[%clk
0:01:56.4]} 21. Rd2 {[%clk 0:01:05.7]} 21... b5 {[%clk 0:01:55.4]} 22. Rad1
{[%clk 0:01:04]} 22... Kb6 {[%clk 0:01:52.1]} 23. g4 {[%clk 0:00:59.7]} 23... a5
{[%clk 0:01:50.1]} 24. f5 {[%clk 0:00:58.3]} 24... gxf5 {[%clk 0:01:39.7]} 25.
gxf5 {[%clk 0:00:58]} 25... d4+ {[%clk 0:01:39.7]} 26. cxd4 {[%clk 0:00:57]}
26... cxd4+ {[%clk 0:01:39.4]} 27. Ke4 {[%clk 0:00:41.2]} 27... Bg5 {[%clk
0:01:02.6]} 28. Nxg5 {[%clk 0:00:37]} 28... hxg5 {[%clk 0:01:02]} 29. Rxd4
{[%clk 0:00:36.9]} 29... Rxd4+ {[%clk 0:01:01.9]} 30. Rxd4 {[%clk 0:00:36.5]}
30... Rh8 {[%clk 0:01:01.7]} 31. Rd7 {[%clk 0:00:26]} 31... Rxh2 {[%clk
0:00:57.3]} 32. Rxf7 {[%clk 0:00:26.2]} 32... Rxb2 {[%clk 0:00:56.8]} 33. e6
{[%clk 0:00:25.5]} 33... Rxa2 {[%clk 0:00:56.3]} 34. f6 {[%clk 0:00:25.8]} 34...
Re2+ {[%clk 0:00:55.2]} 35. Kf5 {[%clk 0:00:25.3]} 35... b4 {[%clk 0:00:51.5]}
36. e7 {[%clk 0:00:25.2]} 36... b3 {[%clk 0:00:51.1]} 37. Rf8 {[%clk 0:00:25.7]}
37... a4 {[%clk 0:00:29.1]} 38. e8=Q {[%clk 0:00:20.6]} 38... Rxe8 {[%clk
0:00:27.9]} 39. Rxe8 {[%clk 0:00:21.5]} 39... Kc7 {[%clk 0:00:20.5]} 40. f7
{[%clk 0:00:20]} 40... b2 {[%clk 0:00:20.7]} 41. Re1 {[%clk 0:00:18.9]} 1-0

[Event "*** Titled Tuesday Blitz"]
[Site "Chess.com"]
[Date "2021.03.16"]
[Round "9"]
[White "Grieve72"]
[Black "ViktoriyaTarasova"]
[Result "0-1"]
[WhiteElo "2490"]
[BlackElo "2378"]
[TimeControl "180+1"]
[EndTime "11:44:26 PDT"]
[Termination "ViktoriyaTarasova won on time"]

1. e4 {[%clk 0:02:59.9]} 1... e5 {[%clk 0:02:59.8]} 2. Nf3 {[%clk 0:03:00]} 2...
Nc6 {[%clk 0:02:59.5]} 3. Bc4 {[%clk 0:03:00.5]} 3... Bc5 {[%clk 0:02:58.2]} 4.
O-O {[%clk 0:02:59.8]} 4... Nf6 {[%clk 0:02:56.9]} 5. d3 {[%clk 0:03:00]} 5...
h6 {[%clk 0:02:54.1]} 6. Nbd2 {[%clk 0:02:50.1]} 6... d6 {[%clk 0:02:53.4]} 7.
a4 {[%clk 0:02:47.4]} 7... a6 {[%clk 0:02:52.6]} 8. c3 {[%clk 0:02:45.5]} 8...
O-O {[%clk 0:02:51.6]} 9. h3 {[%clk 0:02:44.6]} 9... Be6 {[%clk 0:02:50.1]} 10.
Re1 {[%clk 0:02:26.8]} 10... Re8 {[%clk 0:02:48.4]} 11. Bxe6 {[%clk 0:02:24.6]}
11... Rxe6 {[%clk 0:02:45.8]} 12. Nf1 {[%clk 0:02:24.3]} 12... Re8 {[%clk
0:02:42.3]} 13. Ng3 {[%clk 0:02:21.3]} 13... d5 {[%clk 0:02:40.9]} 14. Qe2
{[%clk 0:02:07.9]} 14... Qd7 {[%clk 0:02:20.1]} 15. Be3 {[%clk 0:01:12.8]} 15...
Bxe3 {[%clk 0:02:15.4]} 16. Qxe3 {[%clk 0:01:13.7]} 16... Rad8 {[%clk
0:02:12.7]} 17. Rad1 {[%clk 0:01:09.1]} 17... dxe4 {[%clk 0:02:07.7]} 18. Nxe4
{[%clk 0:01:10]} 18... Nxe4 {[%clk 0:02:04]} 19. Qxe4 {[%clk 0:01:10.9]} 19...
f5 {[%clk 0:01:47.4]} 20. Qc4+ {[%clk 0:01:08.9]} 20... Kh7 {[%clk 0:01:47.6]}
21. Rd2 {[%clk 0:00:39.7]} 21... Re7 {[%clk 0:01:35.9]} 22. Qh4 {[%clk
0:00:22.1]} 22... Kg8 {[%clk 0:01:16.6]} 23. Qh5 {[%clk 0:00:21.5]} 23... Rde8
{[%clk 0:01:07.3]} 24. Qg6 {[%clk 0:00:11.3]} 24... Qe6 {[%clk 0:00:57.5]} 25.
Qxe6+ {[%clk 0:00:11.3]} 25... Rxe6 {[%clk 0:00:57.5]} 26. Rde2 {[%clk
0:00:12.2]} 26... Kf7 {[%clk 0:00:52.9]} 27. Kf1 {[%clk 0:00:09.1]} 27... Kf6
{[%clk 0:00:50.2]} 28. b4 {[%clk 0:00:04.7]} 28... b5 {[%clk 0:00:44.4]} 29.
axb5 {[%clk 0:00:04.7]} 29... axb5 {[%clk 0:00:45.1]} 30. Ra1 {[%clk 0:00:05.4]}
30... Rd8 {[%clk 0:00:43]} 31. Ne1 {[%clk 0:00:02]} 31... Ne7 {[%clk 0:00:30.8]}
32. Ra7 {[%clk 0:00:02]} 32... Rc6 {[%clk 0:00:27.7]} 33. Rb7 {[%clk 0:00:02.5]}
33... Rxc3 {[%clk 0:00:25.5]} 34. Rxb5 {[%clk 0:00:02.7]} 34... Nc6 {[%clk
0:00:20.6]} 35. g3 {[%clk 0:00:01.6]} 35... Rc1 {[%clk 0:00:20.2]} 0-1

[Event "*** Titled Tuesday Blitz"]
[Site "Chess.com"]
[Date "2021.03.16"]
[Round "9"]
[White "chessmadara"]
[Black "Speed-O-Sonic"]
[Result "0-1"]
[WhiteElo "2183"]
[BlackElo "2367"]
[TimeControl "180+1"]
[EndTime "11:44:26 PDT"]
[Termination "Speed-O-Sonic won on time"]

1. e4 {[%clk 0:03:00.9]} 1... c6 {[%clk 0:03:00.3]} 2. d4 {[%clk 0:03:00.2]}
2... d5 {[%clk 0:02:58.6]} 3. Nc3 {[%clk 0:03:00.7]} 3... dxe4 {[%clk
0:02:57.7]} 4. Nxe4 {[%clk 0:03:01.6]} 4... Nf6 {[%clk 0:02:58.6]} 5. Nxf6+
{[%clk 0:03:01.3]} 5... exf6 {[%clk 0:02:59.5]} 6. c3 {[%clk 0:03:01.5]} 6...
Bd6 {[%clk 0:02:59.6]} 7. Bd3 {[%clk 0:03:01.3]} 7... O-O {[%clk 0:02:59.8]} 8.
Ne2 {[%clk 0:02:59.9]} 8... Re8 {[%clk 0:03:00.3]} 9. Qc2 {[%clk 0:02:59.9]}
9... h5 {[%clk 0:03:00.4]} 10. Be3 {[%clk 0:02:59.2]} 10... Nd7 {[%clk
0:02:59.9]} 11. O-O-O {[%clk 0:02:58.5]} 11... Nf8 {[%clk 0:03:00.4]} 12. Kb1
{[%clk 0:02:55.5]} 12... Be6 {[%clk 0:02:59.6]} 13. Nf4 {[%clk 0:02:49.8]} 13...
Bxf4 {[%clk 0:02:46]} 14. Bxf4 {[%clk 0:02:49.3]} 14... b5 {[%clk 0:02:42.6]}
15. Be4 {[%clk 0:02:36.3]} 15... Bd5 {[%clk 0:02:39.2]} 16. f3 {[%clk 0:02:12]}
16... a5 {[%clk 0:02:27.5]} 17. g4 {[%clk 0:02:02]} 17... hxg4 {[%clk
0:02:24.4]} 18. Rhg1 {[%clk 0:01:59.2]} 18... gxf3 {[%clk 0:01:42.6]} 19. Bf5
{[%clk 0:01:41.9]} 19... Ng6 {[%clk 0:01:38.2]} 20. Bc1 {[%clk 0:01:30.3]} 20...
Qe7 {[%clk 0:01:31.4]} 21. Rg4 {[%clk 0:01:10.1]} 21... Qe2 {[%clk 0:01:24.1]}
22. h4 {[%clk 0:01:02.1]} 22... Qxc2+ {[%clk 0:01:21.7]} 23. Kxc2 {[%clk
0:01:01.9]} 23... f2 {[%clk 0:01:21.5]} 24. h5 {[%clk 0:00:58.6]} 24... Bf3
{[%clk 0:01:20.9]} 25. Rf1 {[%clk 0:00:52.4]} 25... Bxg4 {[%clk 0:01:18]} 26.
Bxg4 {[%clk 0:00:53.3]} 26... Ne7 {[%clk 0:01:09.5]} 27. Rxf2 {[%clk 0:00:53.3]}
27... Nd5 {[%clk 0:01:09.8]} 28. Bd7 {[%clk 0:00:44.7]} 28... Red8 {[%clk
0:00:59.6]} 29. Bxc6 {[%clk 0:00:43.6]} 29... Rab8 {[%clk 0:00:56.3]} 30. h6
{[%clk 0:00:16.2]} 30... Rb6 {[%clk 0:00:46.6]} 31. Bxd5 {[%clk 0:00:13.9]}
31... Rxd5 {[%clk 0:00:47.5]} 32. hxg7 {[%clk 0:00:12.9]} 32... Kxg7 {[%clk
0:00:48.4]} 33. Rh2 {[%clk 0:00:10.4]} 33... b4 {[%clk 0:00:46.1]} 34. Bh6+
{[%clk 0:00:09.6]} 34... Kg6 {[%clk 0:00:46]} 35. Bf8 {[%clk 0:00:08.5]} 35...
Rc6 {[%clk 0:00:44]} 36. Rh6+ {[%clk 0:00:06.7]} 36... Kg5 {[%clk 0:00:41.5]}
37. Kd3 {[%clk 0:00:06.3]} 37... bxc3 {[%clk 0:00:32.9]} 38. bxc3 {[%clk
0:00:07.2]} 38... Rd8 {[%clk 0:00:25.9]} 39. Bg7 {[%clk 0:00:07.1]} 39... Rg8
{[%clk 0:00:25.6]} 0-1

[Event "*** Titled Tuesday Blitz"]
[Site "Chess.com"]
[Date "2021.03.16"]
[Round "9"]
[White "IngOscarArdila"]
[Black "Manukyan_Artak"]
[Result "1-0"]
[WhiteElo "2289"]
[BlackElo "2378"]
[TimeControl "180+1"]
[EndTime "11:44:29 PDT"]
[Termination "IngOscarArdila won on time"]

1. d4 {[%clk 0:02:53.8]} 1... Nf6 {[%clk 0:02:59.3]} 2. c4 {[%clk 0:02:17.2]}
2... e6 {[%clk 0:02:57]} 3. Nc3 {[%clk 0:02:16.7]} 3... Bb4 {[%clk 0:02:47.7]}
4. Bd2 {[%clk 0:02:15.2]} 4... d5 {[%clk 0:02:46.3]} 5. Nf3 {[%clk 0:02:13.9]}
5... O-O {[%clk 0:02:43.5]} 6. e3 {[%clk 0:02:13.5]} 6... b6 {[%clk 0:02:39.5]}
7. cxd5 {[%clk 0:02:09.3]} 7... exd5 {[%clk 0:02:37.8]} 8. Bd3 {[%clk
0:02:07.5]} 8... Ba6 {[%clk 0:02:30.6]} 9. Bxa6 {[%clk 0:02:02.5]} 9... Nxa6
{[%clk 0:02:31.5]} 10. Qa4 {[%clk 0:02:02.5]} 10... Bxc3 {[%clk 0:02:26.3]} 11.
bxc3 {[%clk 0:01:59.5]} 11... Nb8 {[%clk 0:02:21.4]} 12. O-O {[%clk 0:01:59.2]}
12... Nbd7 {[%clk 0:02:18.2]} 13. c4 {[%clk 0:01:58.5]} 13... c5 {[%clk
0:02:16.5]} 14. cxd5 {[%clk 0:01:57.4]} 14... Nxd5 {[%clk 0:02:15.8]} 15. Rac1
{[%clk 0:01:52.1]} 15... cxd4 {[%clk 0:02:08.9]} 16. Nxd4 {[%clk 0:01:51.2]}
16... Nc5 {[%clk 0:02:08.7]} 17. Qb5 {[%clk 0:01:48.7]} 17... Nc7 {[%clk
0:01:54.4]} 18. Qe2 {[%clk 0:01:46.9]} 18... N7e6 {[%clk 0:01:54.1]} 19. Bc3
{[%clk 0:01:44.7]} 19... Nxd4 {[%clk 0:01:46.6]} 20. Bxd4 {[%clk 0:01:44.6]}
20... Ne6 {[%clk 0:01:46.7]} 21. Ba1 {[%clk 0:01:43.2]} 21... Qd5 {[%clk
0:01:40.6]} 22. Rfd1 {[%clk 0:01:42]} 22... Qg5 {[%clk 0:01:39.5]} 23. Qf3
{[%clk 0:01:38.8]} 23... Rad8 {[%clk 0:01:34.1]} 24. h3 {[%clk 0:01:29.8]} 24...
h5 {[%clk 0:01:31.4]} 25. Kh2 {[%clk 0:01:22.5]} 25... h4 {[%clk 0:01:22.9]} 26.
Rxd8 {[%clk 0:01:17]} 26... Rxd8 {[%clk 0:01:19.3]} 27. Rc4 {[%clk 0:01:17.2]}
27... Qh6 {[%clk 0:00:46.3]} 28. Rg4 {[%clk 0:01:04.7]} 28... Rd2 {[%clk
0:00:41.8]} 29. a4 {[%clk 0:01:03.2]} 29... Ra2 {[%clk 0:00:34.5]} 30. Be5
{[%clk 0:01:01.4]} 30... Kh7 {[%clk 0:00:16.5]} 31. Qe4+ {[%clk 0:00:56]} 31...
g6 {[%clk 0:00:14.9]} 32. Qf3 {[%clk 0:00:53.5]} 32... f5 {[%clk 0:00:11.7]} 33.
Qd5 {[%clk 0:00:45.9]} 33... fxg4 {[%clk 0:00:09.8]} 34. Qxa2 {[%clk 0:00:42.8]}
34... g3+ {[%clk 0:00:04.6]} 35. fxg3 {[%clk 0:00:39.5]} 35... hxg3+ {[%clk
0:00:05.5]} 36. Bxg3 {[%clk 0:00:39]} 36... Qxe3 {[%clk 0:00:05.7]} 37. Qd5
{[%clk 0:00:36.1]} 37... g5 {[%clk 0:00:05.2]} 38. Qd7+ {[%clk 0:00:34.2]} 38...
Kg6 {[%clk 0:00:05.5]} 39. Qe8+ {[%clk 0:00:33.8]} 39... Kf5 {[%clk 0:00:05.4]}
40. Qf7+ {[%clk 0:00:33.5]} 1-0

[Event "*** Titled Tuesday Blitz"]
[Site "Chess.com"]
[Date "2021.03.16"]
[Round "9"]
[White "Murad_Ibrahimli"]
[Black "Bodnar_Mykola"]
[Result "0-1"]
[WhiteElo "2769"]
[BlackElo "2517"]
[TimeControl "180+1"]
[EndTime "11:44:30 PDT"]
[Termination "Bodnar_Mykola won by resignation"]

1. Nf3 {[%clk 0:03:00.9]} 1... Nf6 {[%clk 0:03:00.1]} 2. g3 {[%clk 0:03:01.1]}
2... g6 {[%clk 0:03:00.4]} 3. Bg2 {[%clk 0:03:01.6]} 3... Bg7 {[%clk 0:03:00.9]}
4. O-O {[%clk 0:03:02.1]} 4... O-O {[%clk 0:03:01.4]} 5. c4 {[%clk 0:03:02.5]}
5... c5 {[%clk 0:03:00.7]} 6. Nc3 {[%clk 0:03:02.8]} 6... Nc6 {[%clk 0:03:00.3]}
7. d4 {[%clk 0:03:02.8]} 7... cxd4 {[%clk 0:02:59.8]} 8. Nxd4 {[%clk 0:03:03.7]}
8... Nxd4 {[%clk 0:02:59.1]} 9. Qxd4 {[%clk 0:03:04.2]} 9... d6 {[%clk
0:02:59.7]} 10. Qd3 {[%clk 0:03:04.7]} 10... Qa5 {[%clk 0:02:46.4]} 11. Bd2
{[%clk 0:03:02.4]} 11... Bf5 {[%clk 0:02:39.2]} 12. e4 {[%clk 0:03:01.3]} 12...
Be6 {[%clk 0:02:37.7]} 13. Nd5 {[%clk 0:02:58.7]} 13... Qd8 {[%clk 0:02:36.4]}
14. Bc3 {[%clk 0:02:56.5]} 14... Bxd5 {[%clk 0:02:34.8]} 15. exd5 {[%clk
0:02:48.7]} 15... Rc8 {[%clk 0:02:23.6]} 16. Rfe1 {[%clk 0:02:43.7]} 16... Qc7
{[%clk 0:02:17.2]} 17. Rac1 {[%clk 0:02:30.8]} 17... Rfe8 {[%clk 0:02:05]} 18.
b3 {[%clk 0:02:28.6]} 18... Nd7 {[%clk 0:01:51.4]} 19. Bxg7 {[%clk 0:02:26.8]}
19... Kxg7 {[%clk 0:01:50.3]} 20. Bh3 {[%clk 0:02:21.3]} 20... a5 {[%clk
0:01:32.9]} 21. Qc3+ {[%clk 0:02:05.5]} 21... Kg8 {[%clk 0:01:32.6]} 22. Bxd7
{[%clk 0:02:05.6]} 22... Qxd7 {[%clk 0:01:32.3]} 23. Qxa5 {[%clk 0:02:06.1]}
23... Ra8 {[%clk 0:01:27.8]} 24. Qd2 {[%clk 0:02:06.2]} 24... b5 {[%clk
0:01:28.5]} 25. c5 {[%clk 0:01:53.7]} 25... dxc5 {[%clk 0:01:17.3]} 26. Rxc5
{[%clk 0:01:54.6]} 26... Rab8 {[%clk 0:00:41.9]} 27. h4 {[%clk 0:01:52.9]} 27...
h5 {[%clk 0:00:41.7]} 28. Qg5 {[%clk 0:01:41.5]} 28... Rb6 {[%clk 0:00:38.7]}
29. Re4 {[%clk 0:01:35.9]} 29... Rd6 {[%clk 0:00:37.1]} 30. a4 {[%clk
0:01:15.9]} 30... bxa4 {[%clk 0:00:36.9]} 31. bxa4 {[%clk 0:01:16.8]} 31... e6
{[%clk 0:00:36.8]} 32. Qe5 {[%clk 0:01:01.1]} 32... Rd8 {[%clk 0:00:29.5]} 33.
dxe6 {[%clk 0:00:44.8]} 33... Rxe6 {[%clk 0:00:30.4]} 34. Qf4 {[%clk 0:00:45]}
34... Qd1+ {[%clk 0:00:18.3]} 35. Kg2 {[%clk 0:00:43.2]} 35... Rde8 {[%clk
0:00:14.6]} 36. Rxe6 {[%clk 0:00:34.3]} 36... Rxe6 {[%clk 0:00:15.5]} 37. Rc7
{[%clk 0:00:33.5]} 37... Qd5+ {[%clk 0:00:14.4]} 38. Kh2 {[%clk 0:00:34]} 38...
Re1 {[%clk 0:00:13.4]} 39. f3 {[%clk 0:00:21.9]} 39... Qa2+ {[%clk 0:00:11.7]}
0-1

[Event "*** Titled Tuesday Blitz"]
[Site "Chess.com"]
[Date "2021.03.16"]
[Round "9"]
[White "Babas"]
[Black "Matols"]
[Result "1-0"]
[WhiteElo "2410"]
[BlackElo "2288"]
[TimeControl "180+1"]
[EndTime "11:44:30 PDT"]
[Termination "Babas won by resignation"]

1. d4 {[%clk 0:02:59.5]} 1... Nf6 {[%clk 0:02:58.6]} 2. Nf3 {[%clk 0:02:59.2]}
2... e6 {[%clk 0:02:58.5]} 3. c4 {[%clk 0:02:58.9]} 3... b6 {[%clk 0:02:57.6]}
4. Bg5 {[%clk 0:02:56.6]} 4... Bb4+ {[%clk 0:02:52.9]} 5. Nbd2 {[%clk
0:02:55.4]} 5... h6 {[%clk 0:02:49.6]} 6. Bxf6 {[%clk 0:02:54.2]} 6... Qxf6
{[%clk 0:02:48.9]} 7. e4 {[%clk 0:02:53.9]} 7... Bb7 {[%clk 0:02:43.8]} 8. Bd3
{[%clk 0:02:50.5]} 8... d6 {[%clk 0:02:40]} 9. O-O {[%clk 0:02:45.9]} 9... Bxd2
{[%clk 0:02:38.2]} 10. Qxd2 {[%clk 0:02:42.9]} 10... O-O {[%clk 0:02:36]} 11.
Rfe1 {[%clk 0:02:37.8]} 11... e5 {[%clk 0:02:32.2]} 12. Qc3 {[%clk 0:02:24.5]}
12... Nd7 {[%clk 0:02:29.5]} 13. d5 {[%clk 0:02:16.7]} 13... a5 {[%clk
0:02:27.1]} 14. b3 {[%clk 0:02:14.7]} 14... Nc5 {[%clk 0:02:24.6]} 15. Bc2
{[%clk 0:02:14.8]} 15... Bc8 {[%clk 0:01:59.8]} 16. a3 {[%clk 0:02:10.4]} 16...
Bg4 {[%clk 0:01:58.1]} 17. Nd2 {[%clk 0:02:04]} 17... Qg6 {[%clk 0:01:43.9]} 18.
b4 {[%clk 0:02:00.7]} 18... axb4 {[%clk 0:01:43.5]} 19. axb4 {[%clk 0:02:01.6]}
19... Nd7 {[%clk 0:01:42.4]} 20. Nf1 {[%clk 0:01:45]} 20... f5 {[%clk
0:01:38.8]} 21. h3 {[%clk 0:01:40.5]} 21... Bh5 {[%clk 0:01:26.4]} 22. exf5
{[%clk 0:01:38.7]} 22... Qg5 {[%clk 0:01:24.2]} 23. Ng3 {[%clk 0:01:16.9]} 23...
Nf6 {[%clk 0:01:10.4]} 24. c5 {[%clk 0:01:09.4]} 24... bxc5 {[%clk 0:01:08.4]}
25. bxc5 {[%clk 0:01:08.9]} 25... Nxd5 {[%clk 0:00:59.1]} 26. Bb3 {[%clk
0:00:51.5]} 26... Bf7 {[%clk 0:00:53.5]} 27. Bxd5 {[%clk 0:00:50.2]} 27... Bxd5
{[%clk 0:00:52.8]} 28. Rad1 {[%clk 0:00:49.6]} 28... c6 {[%clk 0:00:41.1]} 29.
cxd6 {[%clk 0:00:44.9]} 29... Rxf5 {[%clk 0:00:37.3]} 30. d7 {[%clk 0:00:19.4]}
30... Rff8 {[%clk 0:00:19]} 31. Rxe5 {[%clk 0:00:16.3]} 31... Qf4 {[%clk
0:00:18.4]} 32. Qe3 {[%clk 0:00:10.5]} 32... Qc4 {[%clk 0:00:16.3]} 33. Re8
{[%clk 0:00:08.8]} 33... Bf7 {[%clk 0:00:09.7]} 34. Rxa8 {[%clk 0:00:08.2]}
34... Rxa8 {[%clk 0:00:08.8]} 35. d8=Q+ {[%clk 0:00:08.5]} 1-0

[Event "*** Titled Tuesday Blitz"]
[Site "Chess.com"]
[Date "2021.03.16"]
[Round "9"]
[White "davigator"]
[Black "hypert"]
[Result "1-0"]
[WhiteElo "2446"]
[BlackElo "2559"]
[TimeControl "180+1"]
[EndTime "11:44:34 PDT"]
[Termination "davigator won by resignation"]

1. e4 {[%clk 0:03:00.9]} 1... c5 {[%clk 0:02:59.7]} 2. Nf3 {[%clk 0:03:00.7]}
2... e6 {[%clk 0:03:00.2]} 3. d4 {[%clk 0:03:01]} 3... cxd4 {[%clk 0:03:01.1]}
4. Nxd4 {[%clk 0:03:01.3]} 4... Nc6 {[%clk 0:03:01.7]} 5. Nc3 {[%clk 0:03:01.1]}
5... Qc7 {[%clk 0:03:02.2]} 6. Be3 {[%clk 0:03:01]} 6... a6 {[%clk 0:03:02.2]}
7. f3 {[%clk 0:03:01.1]} 7... Nf6 {[%clk 0:03:02.1]} 8. Qd2 {[%clk 0:03:01.2]}
8... b5 {[%clk 0:03:02.4]} 9. O-O-O {[%clk 0:03:00.4]} 9... Be7 {[%clk
0:03:02.3]} 10. g4 {[%clk 0:02:59.7]} 10... Nxd4 {[%clk 0:03:01.7]} 11. Qxd4
{[%clk 0:02:58.5]} 11... Bb7 {[%clk 0:03:02.3]} 12. g5 {[%clk 0:02:57.8]} 12...
Nh5 {[%clk 0:03:01.6]} 13. Rd2 {[%clk 0:02:54.9]} 13... b4 {[%clk 0:02:56]} 14.
Ne2 {[%clk 0:02:53.1]} 14... d5 {[%clk 0:02:54.9]} 15. e5 {[%clk 0:02:48.9]}
15... Rc8 {[%clk 0:02:51.1]} 16. Ng3 {[%clk 0:02:45]} 16... Nxg3 {[%clk
0:02:34.1]} 17. hxg3 {[%clk 0:02:44.5]} 17... Qa5 {[%clk 0:02:33.5]} 18. Kb1
{[%clk 0:02:40.1]} 18... Bc5 {[%clk 0:02:28.9]} 19. Qf4 {[%clk 0:02:38]} 19...
d4 {[%clk 0:02:13.3]} 20. Bxd4 {[%clk 0:02:33.6]} 20... Bd5 {[%clk 0:02:09.4]}
21. b3 {[%clk 0:02:33]} 21... Bxd4 {[%clk 0:02:00.9]} 22. Rxd4 {[%clk
0:02:31.7]} 22... Qc5 {[%clk 0:01:53.9]} 23. Rd2 {[%clk 0:02:20.3]} 23... a5
{[%clk 0:01:48]} 24. Bd3 {[%clk 0:02:18.9]} 24... g6 {[%clk 0:01:24.5]} 25. Rdh2
{[%clk 0:02:10.8]} 25... h5 {[%clk 0:01:08.3]} 26. gxh6 {[%clk 0:02:06.7]} 26...
Rh7 {[%clk 0:01:06.5]} 27. Rf1 {[%clk 0:01:57.1]} 27... a4 {[%clk 0:01:05.6]}
28. Rh4 {[%clk 0:01:46.6]} 28... axb3 {[%clk 0:00:58.8]} 29. axb3 {[%clk
0:01:44.7]} 29... Qa5 {[%clk 0:00:48.5]} 30. Qxb4 {[%clk 0:01:42.3]} 30... Qxb4
{[%clk 0:00:49.4]} 31. Rxb4 {[%clk 0:01:41]} 31... Rxh6 {[%clk 0:00:49.9]} 32.
g4 {[%clk 0:01:35.1]} 32... Rh2 {[%clk 0:00:46]} 33. f4 {[%clk 0:01:34]} 33...
Rg2 {[%clk 0:00:45.8]} 34. f5 {[%clk 0:01:33.4]} 34... gxf5 {[%clk 0:00:40.8]}
35. gxf5 {[%clk 0:01:33]} 35... exf5 {[%clk 0:00:39.8]} 36. Bxf5 {[%clk
0:01:31.2]} 36... Rc7 {[%clk 0:00:40.3]} 37. Rb8+ {[%clk 0:01:29.9]} 37... Ke7
{[%clk 0:00:40.1]} 38. Rd1 {[%clk 0:01:20.7]} 38... Be6 {[%clk 0:00:37.3]} 39.
Bd3 {[%clk 0:01:19.5]} 39... Rd7 {[%clk 0:00:30.6]} 40. Re1 {[%clk 0:01:18.8]}
40... Rg3 {[%clk 0:00:28.5]} 41. Kb2 {[%clk 0:01:13.2]} 41... Rg5 {[%clk
0:00:27]} 42. Re3 {[%clk 0:01:09.5]} 42... Rg2 {[%clk 0:00:25.9]} 43. b4 {[%clk
0:01:07.5]} 43... Rc7 {[%clk 0:00:24.4]} 44. b5 {[%clk 0:01:06.7]} 44... Rg4
{[%clk 0:00:24.3]} 45. b6 {[%clk 0:00:56.3]} 45... Rb4+ {[%clk 0:00:23.3]} 46.
Ka3 {[%clk 0:00:55.1]} 46... Rcc4 {[%clk 0:00:15.5]} 47. Bxc4 {[%clk 0:00:53.6]}
47... Rxc4 {[%clk 0:00:15.7]} 48. c3 {[%clk 0:00:52.6]} 48... Rc5 {[%clk
0:00:14.8]} 49. Kb4 {[%clk 0:00:52.2]} 49... Rc4+ {[%clk 0:00:14.6]} 50. Kb5
{[%clk 0:00:52.8]} 50... Kd7 {[%clk 0:00:15.5]} 51. Rd3+ {[%clk 0:00:50.5]}
51... Ke7 {[%clk 0:00:15.9]} 52. Rb7+ {[%clk 0:00:49.6]} 52... Ke8 {[%clk
0:00:15.4]} 53. Rc7 {[%clk 0:00:49.8]} 53... Re4 {[%clk 0:00:14]} 54. b7 {[%clk
0:00:46.3]} 54... Bc4+ {[%clk 0:00:13.6]} 55. Rxc4 {[%clk 0:00:44.9]} 1-0